fUST/lending_fUST_20250624
["ID","MTS","AMOUNT","RATE_DAILY","PERIOD"]
[367235624,1750710647342,-860.82,0.00020344,2]
[367235626,1750710647352,-1130.71,0.00020344,2]
[367235628,1750710647362,-460.0,0.00020344,2]
[367235630,1750710647371,-460.0,0.00020344,2]
[367235632,1750710647380,-460.0,0.00020344,2]
[367235634,1750710647389,-186.01949739,0.00020344,2]
[367235636,1750710647398,-606.89,0.00020344,2]
[367235638,1750710647407,-1003.87,0.00020344,2]
[367235640,1750710647417,-478.74,0.00020344,2]
[367235642,1750710647426,-962.73,0.00020344,2]
[367235644,1750710647435,-2963.43,0.00020344,2]
[367235646,1750710647444,-460.0,0.00020344,2]
[367235648,1750710647454,-524.16,0.00020344,2]
[367235650,1750710647463,-763.413253,0.00020345,2]
[367235652,1750710647473,-763.413253,0.00020345,2]
[367235654,1750710647483,-460.0,0.00020345,2]
[367235656,1750710647492,-460.0,0.00020345,2]
[367235658,1750710647501,-424.18741413,0.00020345,2]
[367235660,1750710647513,-460.0,0.00020345,2]
[367235662,1750710647523,-460.0,0.00020345,2]
[367235664,1750710647532,-460.0,0.00020345,2]
[367235666,1750710647541,-460.0,0.00020345,2]
[367235668,1750710647551,-460.0,0.00020345,2]
[367235670,1750710647560,-721.88,0.00020345,2]
[367235672,1750710647569,-460.0,0.00020345,2]
[367235674,1750710647579,-460.0,0.00020345,2]
[367235676,1750710647588,-591.89,0.00020345,2]
[367235677,1750710647597,-460.0,0.00020345,2]
[367235679,1750710647607,-460.0,0.00020345,2]
[367235681,1750710647616,-460.0,0.00020345,2]
[367235683,1750710647625,-460.0,0.00020345,2]
[367235685,1750710647635,-400.50556099,0.00020345,2]
[367235687,1750710647644,-460.0,0.00020345,2]
[367235689,1750710647654,-2401.97,0.00020345,2]
[367235691,1750710647663,-460.0,0.00020345,2]
[367235694,1750710647672,-547.67112953,0.00020345,2]
[367235695,1750710647682,-460.0,0.00020345,2]
[367235697,1750710647691,-460.0,0.00020345,2]
[367235699,1750710647700,-2211.12,0.00020345,2]
[367235701,1750710647710,-460.0,0.00020346,2]
[367235704,1750710647719,-460.0,0.00020346,2]
[367235706,1750710647729,-460.0,0.00020346,2]
[367235708,1750710647739,-460.0,0.00020346,2]
[367235709,1750710647748,-500.0,0.00020346,2]
[367235711,1750710647760,-897.6,0.00020346,2]
[367235713,1750710647770,-460.0,0.00020346,2]
[367235715,1750710647779,-231.70209152,0.00020346,2]
[367235717,1750710647790,-460.0,0.00020346,2]
[367235720,1750710647801,-460.0,0.00020346,2]
[367235722,1750710647810,-787.1,0.00020346,2]
[367235723,1750710647819,-460.0,0.00020346,2]
[367235726,1750710647831,-822.78,0.00020346,2]
[367235727,1750710647840,-460.0,0.00020346,2]
[367235729,1750710647849,-460.0,0.00020346,2]
[367235731,1750710647858,-593.97,0.00020346,2]
[367235733,1750710647869,-460.0,0.00020346,2]
[367235735,1750710647879,-710.51,0.00020346,2]
[367235737,1750710647888,-460.0,0.00020346,2]
[367235739,1750710647897,-460.0,0.00020346,2]
[367235741,1750710647906,-2223.84,0.00020346,2]
[367235743,1750710647915,-1786.19,0.00020346,2]
[367235745,1750710647925,-3724.5,0.00020346,2]
[367235747,1750710647934,-749.68,0.00020346,2]
[367235749,1750710647944,-1564.11,0.00020346,2]
[367235751,1750710647953,-460.0,0.00020346,2]
[367235753,1750710647963,-460.0,0.00020346,2]
[367235755,1750710647972,-3111.98,0.00020346,2]
[367235757,1750710647982,-460.0,0.00020346,2]
[367235759,1750710647991,-1617.37,0.00020346,2]
[367235761,1750710648000,-468.26,0.00020346,2]
[367235763,1750710648011,-460.0,0.00020346,2]
[367235765,1750710648021,-5000.0,0.00020384,2]
[367235767,1750710648030,-168.0,0.00020408,2]
[367235769,1750710648040,-220.46272066,0.00020491,2]
[367235771,1750710648049,-694.36,0.00020496,2]
[367235773,1750710648059,-469.16,0.00020496,2]
[367235775,1750710648068,-1266.41,0.00020496,2]
[367235777,1750710648078,-1809.74,0.00020496,2]
[367235779,1750710648087,-2765.6,0.00020496,2]
[367235781,1750710648096,-467.46,0.00020496,2]
[367235783,1750710648105,-1127.74,0.00020496,2]
[367235785,1750710648114,-652.54,0.00020496,2]
[367235787,1750710648124,-1100.0,0.00020496,2]
[367235789,1750710648133,-829.81,0.00020496,2]
[367235791,1750710648142,-675.88,0.00020496,2]
[367235793,1750710648152,-1118.38,0.00020496,2]
[367235795,1750710648162,-882.64,0.00020496,2]
[367235797,1750710648171,-758.07,0.00020496,2]
[367235799,1750710648180,-151.0,0.000205,3]
[367235801,1750710648190,-168.58296045,0.00020518,2]
[367235803,1750710648200,-320.07254338,0.00020536,2]
[367235805,1750710648210,-500.0,0.00020547,7]
[367235807,1750710648219,-500.0,0.00020575,2]
[367235809,1750710648229,-763.413253,0.000206,2]
[367235811,1750710648238,-763.413253,0.000206,2]
[367235813,1750710648247,-205.184865,0.000206,2]
[367235815,1750710648261,-205.184865,0.000206,2]
[367235817,1750710648270,-4195.5,0.000206,2]
[367235819,1750710648279,-151.0,0.000206,3]
[367235821,1750710648288,-11310.01,0.000206,2]
[367235823,1750710648298,-460.0,0.00020607,2]
[367235825,1750710648307,-460.0,0.00020607,2]
[367235827,1750710648318,-460.0,0.00020607,2]
[367235829,1750710648327,-215.0738,0.00020608,2]
[367235831,1750710648337,-460.0,0.00020618,2]
[367235833,1750710648347,-668.94,0.00020618,2]
[367235835,1750710648357,-460.0,0.00020618,2]
[367235837,1750710648366,-460.0,0.00020618,2]
[367235839,1750710648375,-460.0,0.00020618,2]
[367235841,1750710648385,-460.0,0.00020618,2]
[367235843,1750710648395,-460.0,0.00020618,2]
[367235845,1750710648405,-460.0,0.00020618,2]
[367235847,1750710648415,-460.0,0.00020618,2]
[367235849,1750710648424,-468.71,0.00020618,2]
[367235851,1750710648434,-460.0,0.00020618,2]
[367235853,1750710648443,-460.0,0.00020618,2]
[367235854,1750710648454,-460.0,0.00020618,2]
[367235856,1750710648464,-460.0,0.00020618,2]
[367235858,1750710648474,-460.09,0.00020618,2]
[367235860,1750710648483,-460.0,0.00020618,2]
[367235862,1750710648493,-460.0,0.00020618,2]
[367235864,1750710648502,-460.0,0.00020618,2]
[367235866,1750710648517,-460.0,0.00020618,2]
[367235868,1750710648527,-477.46,0.00020618,2]
[367235870,1750710648537,-460.0,0.00020618,2]
[367235872,1750710648546,-460.0,0.00020618,2]
[367235874,1750710648556,-460.0,0.00020618,2]
[367235876,1750710648565,-460.0,0.00020618,2]
[367235878,1750710648575,-460.0,0.00020618,2]
[367235880,1750710648584,-151.0,0.00020618,2]
[367235882,1750710648594,-460.0,0.00020618,2]
[367235884,1750710648604,-460.0,0.00020618,2]
[367235886,1750710648613,-460.0,0.00020618,2]
[367235888,1750710648623,-460.0,0.00020618,2]
[367235890,1750710648633,-460.0,0.00020618,2]
[367235892,1750710648642,-460.0,0.00020618,2]
[367235894,1750710648652,-460.0,0.00020618,2]
[367235896,1750710648662,-151.8405361,0.00020618,2]
[367235898,1750710648672,-933.59,0.00020618,2]
[367235900,1750710648681,-460.0,0.00020618,2]
[367235902,1750710648690,-6455.85,0.00020618,2]
[367235904,1750710648700,-857.1,0.00020618,2]
[367235906,1750710648710,-715.99,0.00020618,2]
[367235908,1750710648719,-747.94,0.00020618,2]
[367235910,1750710648729,-151.0,0.00020618,2]
[367235912,1750710648738,-536.22,0.00020618,2]
[367235914,1750710648748,-698.57,0.00020618,2]
[367235916,1750710648758,-497.04,0.00020618,2]
[367235918,1750710648768,-460.0,0.00020618,2]
[367235920,1750710648778,-781.09,0.00020618,2]
[367235922,1750710648788,-576.45,0.00020618,2]
[367235924,1750710648801,-712.05,0.00020618,2]
[367235926,1750710648810,-460.0,0.00020618,2]
[367235928,1750710648820,-973.96,0.00020618,2]
[367235930,1750710648831,-151.0,0.00020618,2]
[367235932,1750710648841,-460.0,0.00020618,2]
[367235934,1750710648851,-460.0,0.00020618,2]
[367235936,1750710648861,-460.0,0.00020618,2]
[367235938,1750710648871,-460.0,0.00020618,2]
[367235940,1750710648880,-1029.15,0.00020618,2]
[367235942,1750710648890,-151.0,0.00020618,2]
[367235944,1750710648899,-2487.73,0.00020618,2]
[367235946,1750710648909,-609.07,0.00020618,2]
[367235948,1750710648918,-902.26,0.00020618,2]
[367235950,1750710648927,-460.0,0.00020618,2]
[367235952,1750710648937,-860.82,0.00020618,2]
[367235954,1750710648946,-1130.71,0.00020618,2]
[367235956,1750710648956,-460.0,0.00020618,2]
[367235958,1750710648966,-460.0,0.00020618,2]
[367235960,1750710648975,-460.0,0.00020618,2]
[367235962,1750710648985,-606.89,0.00020618,2]
[367235964,1750710648994,-243.578219,0.00020618,2]
[367235966,1750710649004,-243.578219,0.00020618,2]
[367235968,1750710649014,-1003.87,0.00020618,2]
[367235970,1750710649023,-478.74,0.00020618,2]
[367235972,1750710649032,-962.73,0.00020618,2]
[367235974,1750710649041,-2963.43,0.00020618,2]
[367235976,1750710649050,-460.0,0.00020618,2]
[367235978,1750710649059,-524.16,0.00020618,2]
[367235980,1750710649069,-533.95697979,0.00020619,2]
[367235981,1750710649078,-460.0,0.00020619,2]
[367235983,1750710649088,-460.0,0.00020619,2]
[367235985,1750710649097,-460.0,0.00020619,2]
[367235987,1750710649107,-460.0,0.00020619,2]
[367236006,1750710649269,-460.0,0.00020619,2]
[367236008,1750710649278,-460.0,0.00020619,2]
[367236010,1750710649288,-460.0,0.00020619,2]
[367236012,1750710649297,-721.88,0.00020619,2]
[367236014,1750710649307,-460.0,0.00020619,2]
[367236016,1750710649316,-460.0,0.00020619,2]
[367236018,1750710649325,-591.89,0.00020619,2]
[367236020,1750710649334,-460.0,0.00020619,2]
[367236022,1750710649343,-460.0,0.00020619,2]
[367236024,1750710649352,-460.0,0.00020619,2]
[367236026,1750710649362,-180.68114985,0.00020619,2]
[367236028,1750710649372,-460.0,0.00020619,2]
[367236030,1750710649382,-2401.97,0.00020619,2]
[367236032,1750710649392,-460.0,0.00020619,2]
[367236034,1750710649402,-460.0,0.00020619,2]
[367236036,1750710649411,-460.0,0.00020619,2]
[367236038,1750710649420,-2211.12,0.00020619,2]
[367236040,1750710649430,-460.0,0.0002062,2]
[367236041,1750710649439,-460.0,0.0002062,2]
[367236043,1750710649449,-460.0,0.0002062,2]
[367236045,1750710649458,-460.0,0.0002062,2]
[367236047,1750710649467,-175.54089775,0.0002062,2]
[367236049,1750710649477,-897.6,0.0002062,2]
[367236051,1750710649486,-460.0,0.0002062,2]
[367236052,1750710649495,-460.0,0.0002062,2]
[367236053,1750710649505,-460.0,0.0002062,2]
[367236054,1750710649515,-787.1,0.0002062,2]
[367236055,1750710649525,-460.0,0.0002062,2]
[367236056,1750710649534,-822.78,0.0002062,2]
[367236057,1750710649543,-460.0,0.0002062,2]
[367236058,1750710649552,-151.0,0.0002062,2]
[367236059,1750710649561,-151.0,0.0002062,2]
[367236060,1750710649570,-460.0,0.0002062,2]
[367236061,1750710649580,-593.97,0.0002062,2]
[367236062,1750710649589,-157.499399,0.0002062,2]
[367236063,1750710649599,-151.0,0.0002062,2]
[367236064,1750710649608,-151.0,0.0002062,2]
[367236065,1750710649618,-460.0,0.0002062,2]
[367236066,1750710649628,-794.02675,0.0002062,2]
[367236067,1750710649637,-794.02675,0.0002062,2]
[367236068,1750710649647,-710.51,0.0002062,2]
[367236069,1750710649656,-471.78628786,0.0002062,2]
[367236070,1750710649665,-460.0,0.0002062,2]
[367236071,1750710649675,-153.229217,0.0002062,2]
[367236072,1750710649684,-2223.84,0.0002062,2]
[367236073,1750710649694,-1786.19,0.0002062,2]
[367236074,1750710649703,-3724.5,0.0002062,2]
[367236075,1750710649712,-749.68,0.0002062,2]
[367236076,1750710649722,-1564.11,0.0002062,2]
[367236077,1750710649731,-460.0,0.0002062,2]
[367236078,1750710649740,-460.0,0.0002062,2]
[367236079,1750710649751,-214.767924,0.0002062,2]
[367236080,1750710649761,-3111.98,0.0002062,2]
[367236081,1750710649770,-214.767924,0.0002062,2]
[367236082,1750710649779,-460.0,0.0002062,2]
[367236083,1750710649792,-1617.37,0.0002062,2]
[367236085,1750710649802,-468.26,0.0002062,2]
[367236087,1750710649811,-460.0,0.0002062,2]
[367236089,1750710649821,-151.0,0.0002062,2]
[367236091,1750710649832,-151.0,0.00020627,2]
[367236093,1750710649842,-151.0,0.00020627,2]
[367236095,1750710649853,-205.184865,0.00020627,2]
[367236097,1750710649865,-205.184865,0.00020627,2]
[367236099,1750710649875,-151.0,0.00020627,2]
[367236101,1750710649884,-615.740932,0.00020627,2]
[367236103,1750710649894,-615.740932,0.00020627,2]
[367236105,1750710649903,-181.27215493,0.00020641,2]
[367236107,1750710649913,-374.68074253,0.00020642,2]
[367236109,1750710649923,-800.0,0.00020649,2]
[367236111,1750710649932,-1000.0,0.00020668,2]
[367236113,1750710649941,-1500.0,0.00020668,2]
[367236115,1750710649950,-500.0,0.00020668,2]
[367236117,1750710649960,-278.37987906,0.00020718,2]
[367236119,1750710649970,-763.413253,0.0002074,2]
[367236121,1750710649980,-763.413253,0.0002074,2]
[367236123,1750710649989,-365.43139524,0.00020754,2]
[367236125,1750710650000,-694.36,0.0002077,2]
[367236127,1750710650010,-469.16,0.0002077,2]
[367236129,1750710650019,-1266.41,0.0002077,2]
[367236131,1750710650029,-1809.74,0.0002077,2]
[367236133,1750710650039,-2765.6,0.0002077,2]
[367236135,1750710650048,-467.46,0.0002077,2]
[367236137,1750710650058,-1127.74,0.0002077,2]
[367236139,1750710650068,-652.54,0.0002077,2]
[367236141,1750710650078,-1100.0,0.0002077,2]
[367236143,1750710650088,-829.81,0.0002077,2]
[367236145,1750710650097,-675.88,0.0002077,2]
[367236147,1750710650107,-1118.38,0.0002077,2]
[367236149,1750710650116,-882.64,0.0002077,2]
[367236151,1750710650127,-758.07,0.0002077,2]
[367236153,1750710650136,-177.457047,0.00020774,2]
[367236155,1750710650145,-398.093673,0.00020791,2]
[367236157,1750710650155,-398.093673,0.00020791,2]
[367236159,1750710650165,-2664.63778661,0.00020793,2]
[367236161,1750710650174,-151.0,0.000208,4]
[367236163,1750710650184,-151.0,0.00020801,2]
[367236165,1750710650193,-1000.0,0.00020866,2]
[367236167,1750710650203,-1000.0,0.00020866,2]
[367236169,1750710650213,-1000.0,0.00020866,2]
[367236171,1750710650222,-3197.28,0.0002087,3]
[367236173,1750710650233,-6394.54,0.00020871,3]
[367236175,1750710650242,-1162.64,0.00020872,3]
[367236177,1750710650251,-460.0,0.00020881,2]
[367236178,1750710650262,-460.0,0.00020881,2]
[367236180,1750710650271,-460.0,0.00020881,2]
[367236182,1750710650280,-460.0,0.00020892,2]
[367236184,1750710650289,-668.94,0.00020892,2]
[367236187,1750710650299,-460.0,0.00020892,2]
[367236189,1750710650308,-460.0,0.00020892,2]
[367236190,1750710650317,-460.0,0.00020892,2]
[367236193,1750710650327,-236.78891993,0.00020892,2]
[367236194,1750710650336,-460.0,0.00020892,2]
[367236197,1750710650346,-460.0,0.00020892,2]
[367236199,1750710650355,-460.0,0.00020892,2]
[367236200,1750710650364,-468.71,0.00020892,2]
[367236202,1750710650374,-460.0,0.00020892,2]
[367236205,1750710650383,-460.0,0.00020892,2]
[367236206,1750710650393,-460.0,0.00020892,2]
[367236208,1750710650402,-460.0,0.00020892,2]
[367236210,1750710650412,-460.09,0.00020892,2]
[367236212,1750710650422,-460.0,0.00020892,2]
[367236215,1750710650432,-460.0,0.00020892,2]
[367236217,1750710650443,-460.0,0.00020892,2]
[367236218,1750710650453,-460.0,0.00020892,2]
[367236220,1750710650462,-477.46,0.00020892,2]
[367236222,1750710650472,-460.0,0.00020892,2]
[367236224,1750710650481,-460.0,0.00020892,2]
[367236226,1750710650491,-460.0,0.00020892,2]
[367236228,1750710650500,-460.0,0.00020892,2]
[367236230,1750710650511,-460.0,0.00020892,2]
[367236233,1750710650520,-460.0,0.00020892,2]
[367236234,1750710650530,-460.0,0.00020892,2]
[367236237,1750710650540,-460.0,0.00020892,2]
[367236238,1750710650551,-460.0,0.00020892,2]
[367236240,1750710650560,-224.9724724,0.00020892,2]
[367236242,1750710650570,-460.0,0.00020892,2]
[367236245,1750710650580,-460.0,0.00020892,2]
[367236246,1750710650590,-933.59,0.00020892,2]
[367236249,1750710650599,-460.0,0.00020892,2]
[367236250,1750710650608,-6455.85,0.00020892,2]
[367236252,1750710650617,-857.1,0.00020892,2]
[367236254,1750710650627,-715.99,0.00020892,2]
[367236256,1750710650637,-747.94,0.00020892,2]
[367236258,1750710650646,-536.22,0.00020892,2]
[367236260,1750710650656,-698.57,0.00020892,2]
[367236262,1750710650666,-497.04,0.00020892,2]
[367236264,1750710650675,-460.0,0.00020892,2]
[367236266,1750710650685,-781.09,0.00020892,2]
[367236268,1750710650694,-576.45,0.00020892,2]
[367236270,1750710650703,-712.05,0.00020892,2]
[367236272,1750710650713,-460.0,0.00020892,2]
[367236274,1750710650722,-973.96,0.00020892,2]
[367236276,1750710650731,-460.0,0.00020892,2]
[367236278,1750710650741,-460.0,0.00020892,2]
[367236280,1750710650751,-460.0,0.00020892,2]
[367236282,1750710650762,-460.0,0.00020892,2]
[367236284,1750710650771,-1029.15,0.00020892,2]
[367236286,1750710650780,-2487.73,0.00020892,2]
[367236288,1750710650792,-609.07,0.00020892,2]
[367236290,1750710650803,-902.26,0.00020892,2]
[367236292,1750710650812,-460.0,0.00020892,2]
[367236294,1750710650822,-860.82,0.00020892,2]
[367236296,1750710650833,-1130.71,0.00020892,2]
[367236298,1750710650842,-460.0,0.00020892,2]
[367236300,1750710650852,-460.0,0.00020892,2]
[367236302,1750710650862,-460.0,0.00020892,2]
[367236304,1750710650873,-606.89,0.00020892,2]
[367236306,1750710650883,-1003.87,0.00020892,2]
[367236308,1750710650893,-478.74,0.00020892,2]
[367236310,1750710650903,-962.73,0.00020892,2]
[367236312,1750710650914,-2963.43,0.00020892,2]
[367236314,1750710650923,-460.0,0.00020892,2]
[367236316,1750710650932,-524.16,0.00020892,2]
[367236318,1750710650941,-1095.816141,0.00020893,2]
[367236320,1750710650950,-151.0,0.00020893,2]
[367236322,1750710650960,-460.0,0.00020893,2]
[367236324,1750710650970,-460.0,0.00020893,2]
[367236326,1750710650979,-460.0,0.00020893,2]
[367236328,1750710650988,-460.0,0.00020893,2]
[367236330,1750710650998,-460.0,0.00020893,2]
[367236332,1750710651007,-460.0,0.00020893,2]
[367236333,1750710651017,-232.97140672,0.00020893,2]
[367236335,1750710651027,-460.0,0.00020893,2]
[367236337,1750710651037,-721.88,0.00020893,2]
[367236339,1750710651046,-460.0,0.00020893,2]
[367236341,1750710651056,-460.0,0.00020893,2]
[367236343,1750710651065,-591.89,0.00020893,2]
[367236346,1750710651075,-460.0,0.00020893,2]
[367236347,1750710651084,-460.0,0.00020893,2]
[367236349,1750710651094,-460.0,0.00020893,2]
[367236351,1750710651103,-460.0,0.00020893,2]
[367236353,1750710651113,-2401.97,0.00020893,2]
[367236355,1750710651122,-460.0,0.00020893,2]
[367236357,1750710651132,-460.0,0.00020893,2]
[367236359,1750710651142,-460.0,0.00020893,2]
[367236361,1750710651152,-2211.12,0.00020893,2]
[367236363,1750710651161,-460.0,0.00020894,2]
[367236365,1750710651171,-151.0,0.00020894,2]
[367236367,1750710651180,-460.0,0.00020894,2]
[367236369,1750710651190,-460.0,0.00020894,2]
[367236371,1750710651199,-460.0,0.00020894,2]
[367236373,1750710651209,-897.6,0.00020894,2]
[367236375,1750710651218,-460.0,0.00020894,2]
[367236377,1750710651227,-151.0,0.00020894,2]
[367236379,1750710651237,-151.0,0.00020894,2]
[367236381,1750710651246,-460.0,0.00020894,2]
[367236383,1750710651255,-460.0,0.00020894,2]
[367236385,1750710651266,-260.085202,0.00020894,2]
[367236387,1750710651276,-260.085202,0.00020894,2]
[367236389,1750710651285,-787.1,0.00020894,2]
[367236391,1750710651295,-151.0,0.00020894,2]
[367236393,1750710651304,-936.846726,0.00020894,2]
[367236395,1750710651314,-460.0,0.00020894,2]
[367236397,1750710651324,-936.846726,0.00020894,2]
[367236399,1750710651334,-822.78,0.00020894,2]
[367236401,1750710651344,-460.0,0.00020894,2]
[367236403,1750710651355,-151.0,0.00020894,2]
[367236405,1750710651366,-151.0,0.00020894,2]
[367236407,1750710651375,-460.0,0.00020894,2]
[367236409,1750710651384,-593.97,0.00020894,2]
[367236411,1750710651394,-151.0,0.00020894,2]
[367236413,1750710651404,-151.0,0.00020894,2]
[367236415,1750710651413,-460.0,0.00020894,2]
[367236417,1750710651422,-794.02675,0.00020894,2]
[367236419,1750710651432,-794.02675,0.00020894,2]
[367236421,1750710651442,-710.51,0.00020894,2]
[367236423,1750710651451,-460.0,0.00020894,2]
[367236425,1750710651462,-151.0,0.00020894,2]
[367236427,1750710651471,-2223.84,0.00020894,2]
[367236429,1750710651481,-151.0,0.00020894,2]
[367236431,1750710651491,-1786.19,0.00020894,2]
[367236433,1750710651500,-3724.5,0.00020894,2]
[367236435,1750710651510,-749.68,0.00020894,2]
[367236437,1750710651522,-151.0,0.00020894,2]
[367236439,1750710651531,-1564.11,0.00020894,2]
[367236441,1750710651541,-460.0,0.00020894,2]
[367236443,1750710651550,-460.0,0.00020894,2]
[367236445,1750710651560,-151.0,0.00020894,2]
[367236447,1750710651569,-3111.98,0.00020894,2]
[367236449,1750710651578,-214.767924,0.00020894,2]
[367236451,1750710651587,-214.767924,0.00020894,2]
[367236453,1750710651597,-460.0,0.00020894,2]
[367236455,1750710651606,-1617.37,0.00020894,2]
[367236457,1750710651616,-468.26,0.00020894,2]
[367236459,1750710651625,-243.578219,0.00020894,2]
[367236461,1750710651636,-243.578219,0.00020894,2]
[367236467,1750710651681,-460.0,0.00020894,2]
[367236469,1750710651691,-151.0,0.00020894,2]
[367236471,1750710651700,-151.0,0.00020897,2]
[367236473,1750710651709,-151.0,0.000209,2]
[367236475,1750710651719,-287.804955,0.000209,2]
[367236477,1750710651728,-287.804955,0.000209,2]
[367236479,1750710651738,-151.0,0.000209,2]
[367236480,1750710651747,-153.44189,0.000209,2]
[367236482,1750710651756,-151.0,0.000209,2]
[367236484,1750710651767,-362.289792,0.000209,2]
[367236486,1750710651777,-362.289792,0.000209,2]
[367236488,1750710651787,-189.178146,0.000209,2]
[367236490,1750710651799,-189.178146,0.000209,2]
[367236492,1750710651809,-151.0,0.000209,2]
[367236494,1750710651818,-151.0,0.000209,2]
[367236496,1750710651827,-365.97046,0.000209,2]
[367236498,1750710651838,-365.97046,0.000209,2]
[367236500,1750710651847,-615.740932,0.000209,2]
[367236502,1750710651856,-615.740932,0.000209,2]
[367236504,1750710651865,-151.0,0.00020901,2]
[367236506,1750710651876,-153.583786,0.00020901,2]
[367236508,1750710651885,-205.184865,0.00020901,2]
[367236510,1750710651894,-205.184865,0.00020901,2]
[367236512,1750710651903,-182.83099,0.00020901,2]
[367236514,1750710651912,-151.0,0.00020901,2]
[367236516,1750710651922,-151.0,0.00020901,2]
[367236518,1750710651932,-420.0,0.00020974,2]
[367236520,1750710651941,-420.0,0.00020974,2]
[367236522,1750710651950,-318.14843321,0.0002099,2]
[367236524,1750710651959,-1000.0,0.00021,21]
[367236526,1750710651969,-10000.0,0.00021,2]
[367236528,1750710651978,-4420.93660185,0.00021,2]
[367236530,1750710651988,-1749.0,0.00021036,2]
[367236532,1750710651998,-1749.0,0.00021036,2]
[367236534,1750710652007,-1749.0,0.00021036,2]
[367236536,1750710652017,-1749.0,0.00021036,2]
[367236538,1750710652026,-1749.0,0.00021036,2]
[367236540,1750710652035,-1749.0,0.00021036,2]
[367236542,1750710652044,-1749.0,0.00021036,2]
[367236544,1750710652053,-1749.0,0.00021036,2]
[367236546,1750710652062,-1749.0,0.00021036,2]
[367236548,1750710652071,-1749.0,0.00021036,2]
[367236550,1750710652081,-1749.0,0.00021036,2]
[367236552,1750710652090,-1749.0,0.00021036,2]
[367236554,1750710652100,-1749.0,0.00021036,2]
[367236556,1750710652109,-1749.0,0.00021036,2]
[367236558,1750710652119,-1749.0,0.00021036,2]
[367236560,1750710652129,-1749.0,0.00021036,2]
[367236562,1750710652138,-1749.0,0.00021036,2]
[367236564,1750710652147,-1749.0,0.00021036,2]
[367236566,1750710652158,-1749.0,0.00021036,2]
[367236567,1750710652167,-1749.0,0.00021036,2]
[367236568,1750710652176,-1749.0,0.00021036,2]
[367236569,1750710652186,-1749.0,0.00021036,2]
[367236570,1750710652195,-878.09794246,0.00021036,2]
[367236571,1750710652204,-533.20108691,0.00021041,2]
[367236572,1750710652213,-694.36,0.00021044,2]
[367236573,1750710652221,-469.16,0.00021044,2]
[367236574,1750710652230,-1266.41,0.00021044,2]
[367236575,1750710652239,-1809.74,0.00021044,2]
[367236577,1750710652248,-2765.6,0.00021044,2]
[367236579,1750710652257,-467.46,0.00021044,2]
[367236581,1750710652270,-1127.74,0.00021044,2]
[367236583,1750710652279,-652.54,0.00021044,2]
[367236585,1750710652289,-1100.0,0.00021044,2]
[367236587,1750710652297,-829.81,0.00021044,2]
[367236589,1750710652306,-675.88,0.00021044,2]
[367236591,1750710652315,-1118.38,0.00021044,2]
[367236593,1750710652324,-882.64,0.00021044,2]
[367236595,1750710652333,-758.07,0.00021044,2]